[Event "Titled Tuesday Blitz April 4 Early 2023"]
[White "Jimenez Jimenez, Leandro"]
[Black "Korelskiy, Egor"]
[WhiteFideId "6415253"]
[BlackFideId "34329064"]
[WhiteElo "2263"]
[BlackElo "2186"]
[Result "1/2-1/2"]
[Round "06"]
[TimeControl "180+2"]
[Date "2023.04.04"]
[WhiteClock "0:00:06"]
[BlackClock "0:00:07"]

1. d4 {[%clk 0:02:59]}  d5 {[%clk 0:02:59]} 2. c4 {[%clk 0:02:59]}  e6 {[%clk 0:02:59]} 3. Nf3 {[%clk 0:02:58]}  c6 {[%clk 0:03:00]} 4. g3 {[%clk 0:02:59]}  dxc4 {[%clk 0:03:00]} 5. Bg2 {[%clk 0:02:59]}  b5 {[%clk 0:02:59]} 6. O-O {[%clk 0:02:59]}  Bb7 {[%clk 0:02:58]} 7. a4 {[%clk 0:02:59]}  Nd7 {[%clk 0:02:58]} 8. b3 {[%clk 0:02:42]}  cxb3 {[%clk 0:02:57]} 9. Qxb3 {[%clk 0:02:41]}  a6 {[%clk 0:02:57]} 10. Na3 {[%clk 0:02:09]}  Ngf6 {[%clk 0:02:49]} 11. Nc4 {[%clk 0:02:06]}  Rb8 {[%clk 0:02:43]} 12. Nce5 {[%clk 0:02:02]}  c5 {[%clk 0:02:37]} 13. axb5 {[%clk 0:01:56]}  axb5 {[%clk 0:02:19]} 14. Nxf7 {[%clk 0:01:50]}  Kxf7 {[%clk 0:01:48]} 15. Ng5+ {[%clk 0:01:50]}  Ke8 {[%clk 0:01:35]} 16. Bxb7 {[%clk 0:01:44]}  Rxb7 {[%clk 0:01:34]} 17. Qxe6+ {[%clk 0:01:41]}  Qe7 {[%clk 0:01:34]} 18. Ra8+ {[%clk 0:01:38]}  Rb8 {[%clk 0:01:32]} 19. Rxb8+ {[%clk 0:01:34]}  Nxb8 {[%clk 0:01:32]} 20. Qc8+ {[%clk 0:01:31]}  Qd8 {[%clk 0:01:32]} 21. Qxd8+ {[%clk 0:01:31]}  Kxd8 {[%clk 0:01:32]} 22. Nf7+ {[%clk 0:01:31]}  Ke7 {[%clk 0:01:32]} 23. Nxh8 {[%clk 0:01:32]}  g6 {[%clk 0:01:20]} 24. dxc5 {[%clk 0:01:22]}  Bg7 {[%clk 0:01:17]} 25. Bf4 {[%clk 0:01:22]}  Nc6 {[%clk 0:01:13]} 26. Bd6+ {[%clk 0:01:19]}  Ke6 {[%clk 0:01:08]} 27. Nxg6 {[%clk 0:01:11]}  hxg6 {[%clk 0:01:07]} 28. Rd1 {[%clk 0:00:50]}  Ne4 {[%clk 0:00:51]} 29. Rd3 {[%clk 0:00:34]}  b4 {[%clk 0:00:37]} 30. e3 {[%clk 0:00:26]}  Nc3 {[%clk 0:00:33]} 31. Rd2 {[%clk 0:00:06]}  b3 {[%clk 0:00:24]} 32. f3 {[%clk 0:00:06]}  Nb5 {[%clk 0:00:18]} 33. f4 {[%clk 0:00:03]}  Nb4 {[%clk 0:00:15]} 34. Be5 {[%clk 0:00:02]}  Bxe5 {[%clk 0:00:11]} 35. fxe5 {[%clk 0:00:03]}  Nc2 {[%clk 0:00:10]} 36. c6 {[%clk 0:00:03]}  b2 {[%clk 0:00:10]} 37. Rd1 {[%clk 0:00:04]}  Kxe5 {[%clk 0:00:08]} 38. Rb1 {[%clk 0:00:03]}  Nxe3 {[%clk 0:00:06]} 39. Rxb2 {[%clk 0:00:03]}  Nc7 {[%clk 0:00:06]} 40. Rd2 {[%clk 0:00:03]}  Ned5 {[%clk 0:00:06]} 41. Kf2 {[%clk 0:00:02]}  Kd6 {[%clk 0:00:06]} 42. Kf3 {[%clk 0:00:02]}  Kxc6 {[%clk 0:00:07]} 43. Kg4 {[%clk 0:00:03]}  Kd6 {[%clk 0:00:07]} 44. Rxd5+ {[%clk 0:00:02]}  Nxd5 {[%clk 0:00:05]} 45. Kg5 {[%clk 0:00:03]}  Ne7 {[%clk 0:00:05]} 46. h4 {[%clk 0:00:03]}  Ke6 {[%clk 0:00:05]} 47. g4 {[%clk 0:00:04]}  Kf7 {[%clk 0:00:04]} 48. h5 {[%clk 0:00:04]}  gxh5 {[%clk 0:00:05]} 49. gxh5 {[%clk 0:00:05]}  Kg7 {[%clk 0:00:05]} 50. h6+ {[%clk 0:00:05]}  Kh7 {[%clk 0:00:06]} 51. Kf6 {[%clk 0:00:06]}  Ng8+ {[%clk 0:00:06]} 52. Kf7 {[%clk 0:00:06]}  Nxh6+ {[%clk 0:00:07]} 1/2-1/2


[Site "https://www.chess.com"]

[Event "Titled Tuesday Blitz April 4 Early 2023"]
[White "Novikov, Evgenij"]
[Black "Skaric, Djuro"]
[WhiteFideId "4125380"]
[BlackFideId "934569"]
[WhiteElo "2242"]
[BlackElo "2282"]
[Result "1-0"]
[Round "06"]
[TimeControl "180+2"]
[Date "2023.04.04"]
[WhiteClock "0:00:16"]
[BlackClock "0:01:39"]

1. d4 {[%clk 0:02:59]}  d6 {[%clk 0:02:57]} 2. e4 {[%clk 0:02:58]}  g6 {[%clk 0:02:57]} 3. Nf3 {[%clk 0:02:55]}  Bg7 {[%clk 0:02:58]} 4. Bc4 {[%clk 0:02:55]}  Nf6 {[%clk 0:02:57]} 5. Qe2 {[%clk 0:02:54]}  O-O {[%clk 0:02:56]} 6. Bb3 {[%clk 0:02:54]}  Nc6 {[%clk 0:02:56]} 7. h3 {[%clk 0:02:48]}  h6 {[%clk 0:02:55]} 8. c3 {[%clk 0:02:45]}  e5 {[%clk 0:02:54]} 9. dxe5 {[%clk 0:02:39]}  dxe5 {[%clk 0:02:54]} 10. O-O {[%clk 0:02:29]}  Qe7 {[%clk 0:02:52]} 11. Na3 {[%clk 0:02:18]}  a6 {[%clk 0:02:52]} 12. Nc4 {[%clk 0:02:11]}  b5 {[%clk 0:02:51]} 13. Ne3 {[%clk 0:02:11]}  Be6 {[%clk 0:02:50]} 14. Nd5 {[%clk 0:01:56]}  Bxd5 {[%clk 0:02:50]} 15. exd5 {[%clk 0:01:55]}  Na5 {[%clk 0:02:49]} 16. Qxe5 {[%clk 0:01:47]}  Qxe5 {[%clk 0:02:49]} 17. Nxe5 {[%clk 0:01:48]}  Nxb3 {[%clk 0:02:49]} 18. axb3 {[%clk 0:01:49]}  Nxd5 {[%clk 0:02:49]} 19. Nd7 {[%clk 0:01:40]}  Rfe8 {[%clk 0:02:47]} 20. Rd1 {[%clk 0:01:33]}  c6 {[%clk 0:02:47]} 21. Nc5 {[%clk 0:01:31]}  a5 {[%clk 0:02:46]} 22. Bd2 {[%clk 0:01:23]}  Re2 {[%clk 0:02:44]} 23. Kf1 {[%clk 0:01:20]}  Ree8 {[%clk 0:02:39]} 24. Re1 {[%clk 0:01:19]}  Rec8 {[%clk 0:02:31]} 25. Nb7 {[%clk 0:01:09]}  Rcb8 {[%clk 0:02:26]} 26. Nxa5 {[%clk 0:01:04]}  b4 {[%clk 0:02:23]} 27. c4 {[%clk 0:00:55]}  Nc7 {[%clk 0:02:23]} 28. Nxc6 {[%clk 0:00:55]}  Rxa1 {[%clk 0:02:20]} 29. Rxa1 {[%clk 0:00:55]}  Rb6 {[%clk 0:02:20]} 30. Nxb4 {[%clk 0:00:50]}  Bxb2 {[%clk 0:02:19]} 31. Rb1 {[%clk 0:00:49]}  Bg7 {[%clk 0:02:15]} 32. Nc2 {[%clk 0:00:42]}  Bf8 {[%clk 0:02:11]} 33. Ba5 {[%clk 0:00:41]}  Rb7 {[%clk 0:02:11]} 34. Bxc7 {[%clk 0:00:41]}  Rxc7 {[%clk 0:02:11]} 35. Ne3 {[%clk 0:00:41]}  Rb7 {[%clk 0:02:07]} 36. Ke2 {[%clk 0:00:40]}  Bc5 {[%clk 0:02:06]} 37. Nd5 {[%clk 0:00:40]}  f5 {[%clk 0:02:04]} 38. f3 {[%clk 0:00:38]}  Kf7 {[%clk 0:02:04]} 39. b4 {[%clk 0:00:38]}  Bd4 {[%clk 0:02:02]} 40. Kd3 {[%clk 0:00:38]}  Be5 {[%clk 0:02:02]} 41. f4 {[%clk 0:00:36]}  Bd6 {[%clk 0:02:01]} 42. Kd4 {[%clk 0:00:34]}  Ke6 {[%clk 0:01:59]} 43. c5 {[%clk 0:00:34]}  Bb8 {[%clk 0:01:58]} 44. Re1+ {[%clk 0:00:34]}  Kf7 {[%clk 0:01:58]} 45. Kc4 {[%clk 0:00:29]}  g5 {[%clk 0:01:57]} 46. fxg5 {[%clk 0:00:29]}  hxg5 {[%clk 0:01:56]} 47. b5 {[%clk 0:00:29]}  Bg3 {[%clk 0:01:52]} 48. Re3 {[%clk 0:00:24]}  Bh2 {[%clk 0:01:51]} 49. c6 {[%clk 0:00:23]}  Ra7 {[%clk 0:01:51]} 50. b6 {[%clk 0:00:22]}  Ra1 {[%clk 0:01:50]} 51. c7 {[%clk 0:00:19]}  Bg1 {[%clk 0:01:40]} 52. Re7+ {[%clk 0:00:18]}  Kg6 {[%clk 0:01:40]} 53. c8=Q {[%clk 0:00:16]}  Rc1+ {[%clk 0:01:39]} 54. Nc3 {[%clk 0:00:16]} 1-0


[Site "https://www.chess.com"]

[Event "Titled Tuesday Blitz April 4 Early 2023"]
[White "Dushyant Sharma"]
[Black "crosky"]
[WhiteFideId "25065130"]
[WhiteElo "2198"]
[BlackElo "2359"]
[Result "1/2-1/2"]
[Round "06"]
[TimeControl "180+2"]
[Date "2023.04.04"]
[WhiteClock "0:00:36"]
[BlackClock "0:01:48"]

1. e4 {[%clk 0:03:00]}  c6 {[%clk 0:03:00]} 2. d4 {[%clk 0:03:00]}  d5 {[%clk 0:03:01]} 3. exd5 {[%clk 0:03:01]}  cxd5 {[%clk 0:03:01]} 4. Bd3 {[%clk 0:02:54]}  Nc6 {[%clk 0:03:01]} 5. c3 {[%clk 0:02:55]}  Qc7 {[%clk 0:03:01]} 6. h3 {[%clk 0:02:53]}  e6 {[%clk 0:02:57]} 7. Nf3 {[%clk 0:02:48]}  Bd6 {[%clk 0:02:57]} 8. O-O {[%clk 0:02:47]}  Nge7 {[%clk 0:02:58]} 9. Be3 {[%clk 0:02:35]}  O-O {[%clk 0:02:58]} 10. Bxh7+ {[%clk 0:02:15]}  Kxh7 {[%clk 0:02:58]} 11. Ng5+ {[%clk 0:02:15]}  Kg6 {[%clk 0:02:53]} 12. Qg4 {[%clk 0:02:11]}  f5 {[%clk 0:02:52]} 13. Qh4 {[%clk 0:02:10]}  f4 {[%clk 0:01:58]} 14. Qg4 {[%clk 0:01:54]}  Kh6 {[%clk 0:01:49]} 15. Qh4+ {[%clk 0:01:32]}  Kg6 {[%clk 0:01:50]} 16. Qg4 {[%clk 0:01:32]}  Kh6 {[%clk 0:01:48]} 17. Qh4+ {[%clk 0:00:36]}  Kg6 {[%clk 0:01:48]} 1/2-1/2


[Site "https://www.chess.com"]

[Event "Titled Tuesday Blitz April 4 Early 2023"]
[White "Fernandez Siles, Luis"]
[Black "Jaskolka, Tomasz"]
[WhiteFideId "2209420"]
[BlackFideId "1170791"]
[WhiteElo "2195"]
[BlackElo "2155"]
[Result "0-1"]
[Round "06"]
[TimeControl "180+2"]
[Date "2023.04.04"]
[WhiteClock "0:00:24"]
[BlackClock "0:00:39"]

1. d4 {[%clk 0:03:00]}  d5 {[%clk 0:02:58]} 2. c4 {[%clk 0:03:00]}  e5 {[%clk 0:02:59]} 3. dxe5 {[%clk 0:02:59]}  d4 {[%clk 0:02:59]} 4. a3 {[%clk 0:02:59]}  a5 {[%clk 0:02:59]} 5. e3 {[%clk 0:02:57]}  Nc6 {[%clk 0:02:57]} 6. Nf3 {[%clk 0:02:57]}  Bc5 {[%clk 0:02:56]} 7. exd4 {[%clk 0:02:51]}  Bxd4 {[%clk 0:02:55]} 8. Nxd4 {[%clk 0:02:37]}  Qxd4 {[%clk 0:02:55]} 9. f4 {[%clk 0:02:17]}  Bf5 {[%clk 0:02:30]} 10. Qa4 {[%clk 0:01:43]}  Bxb1 {[%clk 0:02:19]} 11. Qb5 {[%clk 0:01:28]}  O-O-O {[%clk 0:02:15]} 12. Be2 {[%clk 0:01:24]}  Qe4 {[%clk 0:02:03]} 13. O-O {[%clk 0:01:17]}  Nd4 {[%clk 0:01:56]} 14. Bg4+ {[%clk 0:01:16]}  Kb8 {[%clk 0:01:43]} 15. Qxa5 {[%clk 0:01:12]}  Bd3 {[%clk 0:01:38]} 16. Rd1 {[%clk 0:01:05]}  Ne7 {[%clk 0:01:30]} 17. Bd2 {[%clk 0:01:02]}  Nb3 {[%clk 0:01:24]} 18. Qb4 {[%clk 0:00:59]}  Nxa1 {[%clk 0:01:24]} 19. Bf3 {[%clk 0:00:58]}  Qd4+ {[%clk 0:01:24]} 20. Kh1 {[%clk 0:00:56]}  Be4 {[%clk 0:01:22]} 21. Be3 {[%clk 0:00:52]}  Qxd1+ {[%clk 0:01:22]} 22. Bxd1 {[%clk 0:00:52]}  Rxd1+ {[%clk 0:01:22]} 23. Bg1 {[%clk 0:00:52]}  Nc6 {[%clk 0:01:03]} 24. Qa4 {[%clk 0:00:47]}  Nc2 {[%clk 0:00:54]} 25. h4 {[%clk 0:00:45]}  Rhd8 {[%clk 0:00:53]} 26. Kh2 {[%clk 0:00:44]}  N2d4 {[%clk 0:00:42]} 27. Bf2 {[%clk 0:00:24]}  Rd2 {[%clk 0:00:40]} 28. Kg3 {[%clk 0:00:24]}  Nf5+ {[%clk 0:00:39]} 0-1


[Site "https://www.chess.com"]

[Event "Titled Tuesday Blitz April 4 Early 2023"]
[White "Kraus, Tomas"]
[Black "Nguyen, Hong Anh"]
[WhiteFideId "331708"]
[BlackFideId "12406732"]
[WhiteElo "2389"]
[BlackElo "2054"]
[Result "1/2-1/2"]
[Round "06"]
[TimeControl "180+2"]
[Date "2023.04.04"]
[WhiteClock "0:01:37"]
[BlackClock "0:00:50"]

1. e4 {[%clk 0:03:00]}  c5 {[%clk 0:02:51]} 2. Nc3 {[%clk 0:03:00]}  Nc6 {[%clk 0:02:50]} 3. f4 {[%clk 0:03:00]}  g6 {[%clk 0:02:42]} 4. Nf3 {[%clk 0:03:00]}  Bg7 {[%clk 0:02:39]} 5. g3 {[%clk 0:03:01]}  e6 {[%clk 0:02:39]} 6. Bg2 {[%clk 0:03:01]}  Nge7 {[%clk 0:02:40]} 7. O-O {[%clk 0:03:01]}  O-O {[%clk 0:02:40]} 8. d3 {[%clk 0:03:01]}  d5 {[%clk 0:02:40]} 9. e5 {[%clk 0:03:01]}  Nf5 {[%clk 0:02:35]} 10. g4 {[%clk 0:02:49]}  Nfd4 {[%clk 0:02:33]} 11. g5 {[%clk 0:02:46]}  b5 {[%clk 0:02:23]} 12. h4 {[%clk 0:02:38]}  Nf5 {[%clk 0:02:01]} 13. Bh3 {[%clk 0:02:32]}  b4 {[%clk 0:01:54]} 14. Ne2 {[%clk 0:02:31]}  c4 {[%clk 0:01:52]} 15. Bxf5 {[%clk 0:02:14]}  exf5 {[%clk 0:01:43]} 16. dxc4 {[%clk 0:02:12]}  dxc4 {[%clk 0:01:43]} 17. Qxd8 {[%clk 0:02:13]}  Rxd8 {[%clk 0:01:41]} 18. Be3 {[%clk 0:02:14]}  Be6 {[%clk 0:01:30]} 19. Rfd1 {[%clk 0:02:08]}  Bd5 {[%clk 0:01:08]} 20. Nfd4 {[%clk 0:02:01]}  Bf8 {[%clk 0:01:02]} 21. Kf2 {[%clk 0:01:52]}  a6 {[%clk 0:00:57]} 22. Nxc6 {[%clk 0:01:42]}  Bxc6 {[%clk 0:00:56]} 23. Bb6 {[%clk 0:01:42]}  Rdb8 {[%clk 0:00:50]} 24. Be3 {[%clk 0:01:42]}  Rd8 {[%clk 0:00:50]} 25. Bb6 {[%clk 0:01:37]}  Rdb8 {[%clk 0:00:50]} 26. Be3 {[%clk 0:01:37]}  Rd8 {[%clk 0:00:50]} 1/2-1/2


[Site "https://www.chess.com"]

[Event "Titled Tuesday Blitz April 4 Early 2023"]
[White "Dudzinski, Pawel"]
[Black "Makhmudov, Shukhrat"]
[WhiteFideId "1117890"]
[BlackFideId "14200775"]
[WhiteElo "2099"]
[BlackElo "2135"]
[Result "1-0"]
[Round "06"]
[TimeControl "180+2"]
[Date "2023.04.04"]
[WhiteClock "0:01:28"]
[BlackClock "0:00:19"]

1. e4 {[%clk 0:03:00]}  e5 {[%clk 0:02:59]} 2. Nf3 {[%clk 0:03:00]}  Nc6 {[%clk 0:03:00]} 3. d4 {[%clk 0:03:00]}  exd4 {[%clk 0:03:00]} 4. Nxd4 {[%clk 0:03:01]}  Nf6 {[%clk 0:03:00]} 5. Nxc6 {[%clk 0:02:59]}  bxc6 {[%clk 0:03:00]} 6. e5 {[%clk 0:02:59]}  Qe7 {[%clk 0:03:00]} 7. Qe2 {[%clk 0:02:59]}  Nd5 {[%clk 0:03:01]} 8. c4 {[%clk 0:03:00]}  Ba6 {[%clk 0:03:01]} 9. b3 {[%clk 0:02:57]}  O-O-O {[%clk 0:03:01]} 10. f4 {[%clk 0:02:51]}  Re8 {[%clk 0:02:57]} 11. Qf2 {[%clk 0:02:51]}  Nb6 {[%clk 0:02:38]} 12. Be2 {[%clk 0:02:50]}  f6 {[%clk 0:02:30]} 13. Bb2 {[%clk 0:02:47]}  fxe5 {[%clk 0:02:30]} 14. fxe5 {[%clk 0:02:45]}  Qc5 {[%clk 0:02:22]} 15. Bd4 {[%clk 0:02:43]}  Qa5+ {[%clk 0:02:20]} 16. Kf1 {[%clk 0:02:28]}  Ba3 {[%clk 0:01:56]} 17. Nxa3 {[%clk 0:02:20]}  Qxa3 {[%clk 0:01:56]} 18. Bf3 {[%clk 0:02:11]}  d5 {[%clk 0:01:21]} 19. Kg1 {[%clk 0:01:53]}  Rhf8 {[%clk 0:01:04]} 20. Bc5 {[%clk 0:01:53]}  Qa5 {[%clk 0:00:58]} 21. Bxf8 {[%clk 0:01:51]}  Rxf8 {[%clk 0:00:58]} 22. cxd5 {[%clk 0:01:50]}  cxd5 {[%clk 0:00:54]} 23. h3 {[%clk 0:01:49]}  Qc3 {[%clk 0:00:50]} 24. Re1 {[%clk 0:01:46]}  d4 {[%clk 0:00:45]} 25. Kh2 {[%clk 0:01:44]}  d3 {[%clk 0:00:46]} 26. Qe3 {[%clk 0:01:44]}  Qb4 {[%clk 0:00:38]} 27. Rc1 {[%clk 0:01:34]}  d2 {[%clk 0:00:28]} 28. Rc2 {[%clk 0:01:34]}  Rd8 {[%clk 0:00:26]} 29. Rd1 {[%clk 0:01:33]}  Bb7 {[%clk 0:00:20]} 30. Rcxd2 {[%clk 0:01:30]}  Rxd2 {[%clk 0:00:20]} 31. Qxd2 {[%clk 0:01:26]}  Qxd2 {[%clk 0:00:19]} 32. Rxd2 {[%clk 0:01:27]}  Bxf3 {[%clk 0:00:19]} 33. gxf3 {[%clk 0:01:28]} 1-0


[Site "https://www.chess.com"]

[Event "Titled Tuesday Blitz April 4 Early 2023"]
[White "Antonio, Jorge Carlos"]
[Black "Terletsky, Oleg"]
[WhiteFideId "113190"]
[BlackFideId "14116774"]
[WhiteElo "2247"]
[BlackElo "2084"]
[Result "0-1"]
[Round "06"]
[TimeControl "180+2"]
[Date "2023.04.04"]
[WhiteClock "0:00:08"]
[BlackClock "0:00:07"]

1. d4 {[%clk 0:03:00]}  Nf6 {[%clk 0:02:59]} 2. Nf3 {[%clk 0:02:59]}  g6 {[%clk 0:02:59]} 3. c4 {[%clk 0:02:59]}  Bg7 {[%clk 0:02:59]} 4. Nc3 {[%clk 0:02:59]}  O-O {[%clk 0:03:00]} 5. e4 {[%clk 0:02:59]}  d6 {[%clk 0:03:00]} 6. Be2 {[%clk 0:02:59]}  e5 {[%clk 0:03:00]} 7. O-O {[%clk 0:02:59]}  Nc6 {[%clk 0:03:01]} 8. d5 {[%clk 0:03:00]}  Ne7 {[%clk 0:03:01]} 9. Ne1 {[%clk 0:02:59]}  Nd7 {[%clk 0:03:00]} 10. Be3 {[%clk 0:02:59]}  f5 {[%clk 0:03:00]} 11. f3 {[%clk 0:02:59]}  f4 {[%clk 0:03:00]} 12. Bf2 {[%clk 0:03:00]}  g5 {[%clk 0:03:01]} 13. Rc1 {[%clk 0:03:00]}  Ng6 {[%clk 0:02:58]} 14. c5 {[%clk 0:03:00]}  Nxc5 {[%clk 0:02:56]} 15. b4 {[%clk 0:02:59]}  Na6 {[%clk 0:02:52]} 16. Nb5 {[%clk 0:01:52]}  Bd7 {[%clk 0:02:42]} 17. Nxa7 {[%clk 0:01:49]}  Nxb4 {[%clk 0:02:34]} 18. Qb3 {[%clk 0:01:44]}  Na6 {[%clk 0:01:21]} 19. Qxb7 {[%clk 0:01:40]}  Nc5 {[%clk 0:01:21]} 20. Bxc5 {[%clk 0:01:35]}  dxc5 {[%clk 0:01:21]} 21. Nd3 {[%clk 0:01:32]}  Qb8 {[%clk 0:01:12]} 22. Qxb8 {[%clk 0:01:30]}  Rfxb8 {[%clk 0:01:13]} 23. Nxc5 {[%clk 0:01:21]}  Rxa7 {[%clk 0:01:01]} 24. Nxd7 {[%clk 0:01:15]}  Rd8 {[%clk 0:00:53]} 25. Nc5 {[%clk 0:01:14]}  Bf8 {[%clk 0:00:43]} 26. Ne6 {[%clk 0:01:12]}  Rd7 {[%clk 0:00:40]} 27. Bc4 {[%clk 0:01:10]}  Bd6 {[%clk 0:00:38]} 28. Bb5 {[%clk 0:01:05]}  Re7 {[%clk 0:00:34]} 29. Nxg5 {[%clk 0:01:02]}  Rxa2 {[%clk 0:00:32]} 30. Ra1 {[%clk 0:00:57]}  Bc5+ {[%clk 0:00:31]} 31. Kh1 {[%clk 0:00:53]}  Rb2 {[%clk 0:00:28]} 32. Bc4 {[%clk 0:00:46]}  Nh4 {[%clk 0:00:27]} 33. d6+ {[%clk 0:00:43]}  Kg7 {[%clk 0:00:19]} 34. dxe7 {[%clk 0:00:41]}  Bxe7 {[%clk 0:00:20]} 35. Ne6+ {[%clk 0:00:37]}  Kf6 {[%clk 0:00:20]} 36. g3 {[%clk 0:00:33]}  fxg3 {[%clk 0:00:15]} 37. hxg3 {[%clk 0:00:33]}  Ng2 {[%clk 0:00:15]} 38. Rab1 {[%clk 0:00:30]}  Rc2 {[%clk 0:00:12]} 39. Bd5 {[%clk 0:00:27]}  Ne3 {[%clk 0:00:11]} 40. Rbc1 {[%clk 0:00:22]}  Rd2 {[%clk 0:00:11]} 41. Rfe1 {[%clk 0:00:18]}  Nc2 {[%clk 0:00:09]} 42. Red1 {[%clk 0:00:16]}  Re2 {[%clk 0:00:09]} 43. Kg1 {[%clk 0:00:14]}  Nd4 {[%clk 0:00:09]} 44. Nxc7 {[%clk 0:00:13]}  Nxf3+ {[%clk 0:00:08]} 45. Kf1 {[%clk 0:00:12]}  Rh2 {[%clk 0:00:08]} 46. Bc6 {[%clk 0:00:10]}  Ba3 {[%clk 0:00:07]} 47. Ra1 {[%clk 0:00:09]}  Bc5 {[%clk 0:00:07]} 48. Ra6 {[%clk 0:00:08]}  Rf2# {[%clk 0:00:07]} 0-1


[Site "https://www.chess.com"]

[Event "Titled Tuesday Blitz April 4 Early 2023"]
[White "Nguyen Hong Nhung"]
[Black "babbilator"]
[WhiteFideId "12412201"]
[WhiteElo "1968"]
[BlackElo "2264"]
[Result "1-0"]
[Round "06"]
[TimeControl "180+2"]
[Date "2023.04.04"]
[WhiteClock "0:00:12"]
[BlackClock "0:00:04"]

1. e4 {[%clk 0:03:00]}  c5 {[%clk 0:02:57]} 2. Nc3 {[%clk 0:03:00]}  Nc6 {[%clk 0:02:57]} 3. Bb5 {[%clk 0:03:01]}  Nd4 {[%clk 0:02:48]} 4. Bc4 {[%clk 0:03:01]}  e6 {[%clk 0:02:46]} 5. Nge2 {[%clk 0:03:01]}  Nf6 {[%clk 0:02:44]} 6. O-O {[%clk 0:03:01]}  a6 {[%clk 0:02:41]} 7. a4 {[%clk 0:03:00]}  Qc7 {[%clk 0:02:32]} 8. d3 {[%clk 0:02:57]}  b6 {[%clk 0:02:23]} 9. Be3 {[%clk 0:02:50]}  Nc6 {[%clk 0:02:14]} 10. Bf4 {[%clk 0:02:45]}  d6 {[%clk 0:02:09]} 11. Ng3 {[%clk 0:02:40]}  Be7 {[%clk 0:02:06]} 12. Nh5 {[%clk 0:02:38]}  O-O {[%clk 0:02:02]} 13. Nxf6+ {[%clk 0:02:28]}  Bxf6 {[%clk 0:02:03]} 14. Qh5 {[%clk 0:02:28]}  Nd4 {[%clk 0:01:55]} 15. Qd1 {[%clk 0:01:55]}  Bd7 {[%clk 0:01:51]} 16. Ba2 {[%clk 0:01:35]}  Rfb8 {[%clk 0:01:29]} 17. Re1 {[%clk 0:01:32]}  b5 {[%clk 0:01:27]} 18. axb5 {[%clk 0:01:31]}  axb5 {[%clk 0:01:28]} 19. Qd2 {[%clk 0:01:22]}  Ra7 {[%clk 0:01:08]} 20. Bb3 {[%clk 0:01:13]}  Nxb3 {[%clk 0:01:01]} 21. cxb3 {[%clk 0:01:13]}  Rba8 {[%clk 0:00:58]} 22. Rac1 {[%clk 0:01:09]}  b4 {[%clk 0:00:35]} 23. Ne2 {[%clk 0:01:02]}  e5 {[%clk 0:00:33]} 24. Be3 {[%clk 0:00:54]}  Be6 {[%clk 0:00:33]} 25. Qc2 {[%clk 0:00:42]}  Ra2 {[%clk 0:00:33]} 26. h3 {[%clk 0:00:36]}  h6 {[%clk 0:00:33]} 27. Red1 {[%clk 0:00:34]}  Qe7 {[%clk 0:00:31]} 28. Ng3 {[%clk 0:00:33]}  Bg5 {[%clk 0:00:29]} 29. Nf5 {[%clk 0:00:25]}  Bxf5 {[%clk 0:00:19]} 30. exf5 {[%clk 0:00:26]}  Qf6 {[%clk 0:00:19]} 31. g4 {[%clk 0:00:21]}  h5 {[%clk 0:00:19]} 32. Bxg5 {[%clk 0:00:19]}  Qxg5 {[%clk 0:00:20]} 33. Qd2 {[%clk 0:00:20]}  Qxd2 {[%clk 0:00:18]} 34. Rxd2 {[%clk 0:00:20]}  hxg4 {[%clk 0:00:19]} 35. hxg4 {[%clk 0:00:21]}  f6 {[%clk 0:00:16]} 36. Kg2 {[%clk 0:00:21]}  Kf7 {[%clk 0:00:16]} 37. Kf3 {[%clk 0:00:21]}  Ra1 {[%clk 0:00:17]} 38. Rcd1 {[%clk 0:00:19]}  R8a2 {[%clk 0:00:16]} 39. Rxa1 {[%clk 0:00:18]}  Rxa1 {[%clk 0:00:17]} 40. Ke4 {[%clk 0:00:18]}  Ke7 {[%clk 0:00:14]} 41. Kf3 {[%clk 0:00:17]}  Kd7 {[%clk 0:00:14]} 42. Rc2 {[%clk 0:00:17]}  Kc6 {[%clk 0:00:13]} 43. Ke4 {[%clk 0:00:18]}  d5+ {[%clk 0:00:12]} 44. Ke3 {[%clk 0:00:18]}  Re1+ {[%clk 0:00:12]} 45. Kf3 {[%clk 0:00:17]}  Rd1 {[%clk 0:00:11]} 46. Ke2 {[%clk 0:00:17]}  Rg1 {[%clk 0:00:12]} 47. Kf3 {[%clk 0:00:18]}  Kb5 {[%clk 0:00:10]} 48. Re2 {[%clk 0:00:15]}  Rd1 {[%clk 0:00:09]} 49. Ke3 {[%clk 0:00:15]}  Rg1 {[%clk 0:00:07]} 50. f3 {[%clk 0:00:14]}  Rb1 {[%clk 0:00:05]} 51. Kf2 {[%clk 0:00:14]}  c4 {[%clk 0:00:04]} 52. bxc4+ {[%clk 0:00:13]}  dxc4 {[%clk 0:00:05]} 53. dxc4+ {[%clk 0:00:13]}  Kxc4 {[%clk 0:00:06]} 54. Ke3 {[%clk 0:00:12]}  Kb3 {[%clk 0:00:04]} 55. Rd2 {[%clk 0:00:12]} 1-0


[Site "https://www.chess.com"]

[Event "Titled Tuesday Blitz April 4 Early 2023"]
[White "De Souza, Cristiano Gomes"]
[Black "Sargissyan, Sargis"]
[WhiteFideId "2151758"]
[BlackFideId "13303210"]
[WhiteElo "2068"]
[BlackElo "2109"]
[Result "0-1"]
[Round "06"]
[TimeControl "180+2"]
[Date "2023.04.04"]
[WhiteClock "0:00:08"]
[BlackClock "0:00:08"]

1. d4 {[%clk 0:02:59]}  Nf6 {[%clk 0:02:59]} 2. c4 {[%clk 0:02:58]}  g6 {[%clk 0:03:00]} 3. Nf3 {[%clk 0:02:59]}  Bg7 {[%clk 0:03:01]} 4. Nc3 {[%clk 0:02:58]}  O-O {[%clk 0:03:01]} 5. e4 {[%clk 0:02:59]}  d6 {[%clk 0:03:02]} 6. Be2 {[%clk 0:02:59]}  e5 {[%clk 0:03:03]} 7. O-O {[%clk 0:03:00]}  Nc6 {[%clk 0:03:03]} 8. d5 {[%clk 0:03:00]}  Ne7 {[%clk 0:03:04]} 9. Ne1 {[%clk 0:03:00]}  Nd7 {[%clk 0:03:05]} 10. Be3 {[%clk 0:03:01]}  f5 {[%clk 0:03:05]} 11. f3 {[%clk 0:03:01]}  f4 {[%clk 0:03:06]} 12. Bf2 {[%clk 0:03:02]}  g5 {[%clk 0:03:06]} 13. Nb5 {[%clk 0:02:59]}  Nf6 {[%clk 0:03:00]} 14. Nxa7 {[%clk 0:02:55]}  Bd7 {[%clk 0:03:01]} 15. c5 {[%clk 0:02:54]}  g4 {[%clk 0:02:58]} 16. cxd6 {[%clk 0:02:50]}  cxd6 {[%clk 0:02:40]} 17. Qb3 {[%clk 0:02:48]}  g3 {[%clk 0:02:38]} 18. Bb6 {[%clk 0:02:47]}  Qe8 {[%clk 0:02:36]} 19. hxg3 {[%clk 0:02:30]}  fxg3 {[%clk 0:02:36]} 20. Nd3 {[%clk 0:02:25]}  Qh5 {[%clk 0:02:29]} 21. Rfc1 {[%clk 0:02:22]}  Qh2+ {[%clk 0:02:29]} 22. Kf1 {[%clk 0:02:22]}  Ng4 {[%clk 0:02:15]} 23. Ke1 {[%clk 0:01:52]}  Bh6 {[%clk 0:02:12]} 24. Kd1 {[%clk 0:01:41]}  Qxg2 {[%clk 0:02:06]} 25. fxg4 {[%clk 0:01:39]}  Bxg4 {[%clk 0:01:53]} 26. Rc2 {[%clk 0:01:32]}  Rf1+ {[%clk 0:01:05]} 27. Ne1 {[%clk 0:01:30]}  Raf8 {[%clk 0:00:51]} 28. Qd3 {[%clk 0:00:50]}  Qh1 {[%clk 0:00:38]} 29. Ba5 {[%clk 0:00:43]}  g2 {[%clk 0:00:22]} 30. Bxg4 {[%clk 0:00:33]}  g1=Q {[%clk 0:00:21]} 31. Be6+ {[%clk 0:00:32]}  Kh8 {[%clk 0:00:21]} 32. Qe2 {[%clk 0:00:18]}  Qd4+ {[%clk 0:00:19]} 33. Bd2 {[%clk 0:00:17]}  Rxe1+ {[%clk 0:00:18]} 34. Qxe1 {[%clk 0:00:17]}  Qxe1+ {[%clk 0:00:17]} 35. Kxe1 {[%clk 0:00:17]}  Qg1+ {[%clk 0:00:11]} 36. Ke2 {[%clk 0:00:16]}  Qg4+ {[%clk 0:00:08]} 37. Kd3 {[%clk 0:00:15]}  Rf3+ {[%clk 0:00:08]} 38. Kc4 {[%clk 0:00:12]}  Qxe4+ {[%clk 0:00:09]} 39. Kb5 {[%clk 0:00:09]}  Qxc2 {[%clk 0:00:09]} 40. Bxh6 {[%clk 0:00:09]}  Qxb2+ {[%clk 0:00:09]} 41. Ka5 {[%clk 0:00:08]}  Ra3# {[%clk 0:00:08]} 0-1


[Site "https://www.chess.com"]